[Event "ONJK DE"]
[Site "Enschede, Netherlands"]
[Date "2022.08.10"]
[Round "6.2"]
[White "Terlouw, Wouter"]
[Black "Dijkhuijsen, Thomas"]
[Result "1-0"]
[TimeControl "40min + 30sec/move"]
[WhiteElo "1720"]
[BlackElo "1306"]

1. d4 {[%clk 00:40:56]} {[%emt 00:00:03]} Nf6 {[%clk 00:40:57]} {[%emt
00:00:04]} 2. c4 {[%clk 00:41:19]} {[%emt 00:00:07]} e6 {[%clk 00:41:23]}
{[%emt 00:00:04]} 3. g3 {[%clk 00:41:43]} {[%emt 00:00:06]} Be7 {[%clk
00:41:37]} {[%emt 00:00:16]} 4. Bg2 {[%clk 00:42:00]} {[%emt 00:00:13]} d5
{[%clk 00:41:52]} {[%emt 00:00:15]} 5. Nf3 {[%clk 00:42:20]} {[%emt 00:00:10]}
Nbd7 {[%clk 00:42:11]} {[%emt 00:00:12]} 6. O-O {[%clk 00:42:40]} {[%emt
00:00:09]} O-O {[%clk 00:42:36]} {[%emt 00:00:05]} 7. Bf4 {[%clk 00:42:50]}
{[%emt 00:00:18]} c5 {[%clk 00:41:39]} {[%emt 00:01:30]} 8. Be5 {[%clk
00:39:37]} {[%emt 00:03:42]} Nxe5 {[%clk 00:41:37]} {[%emt 00:00:32]} 9. Nxe5
{[%clk 00:39:20]} {[%emt 00:00:47]} dxc4 {[%clk 00:41:23]} {[%emt 00:00:44]} 10.
dxc5 {[%clk 00:38:40]} {[%emt 00:01:10]} Bxc5 {[%clk 00:41:12]} {[%emt
00:00:40]} 11. Nxc4 {[%clk 00:38:01]} {[%emt 00:01:09]} Qe7 {[%clk 00:39:56]}
{[%emt 00:01:47]} 12. Nc3 {[%clk 00:37:04]} {[%emt 00:01:19]} Rb8 {[%clk
00:39:38]} {[%emt 00:00:56]} 13. Qc2 {[%clk 00:36:25]} {[%emt 00:01:05]} b5
{[%clk 00:39:25]} {[%emt 00:00:46]} 14. Ne5 {[%clk 00:36:26]} {[%emt 00:00:21]}
Qd6 {[%clk 00:37:12]} {[%emt 00:02:50]} 15. Nd3 {[%clk 00:35:23]} {[%emt
00:01:26]} Bd7 {[%clk 00:35:09]} {[%emt 00:02:41]} 16. Rac1 {[%clk 00:31:08]}
{[%emt 00:04:44]} Bb6 {[%clk 00:33:35]} {[%emt 00:02:05]} 17. Rfd1 {[%clk
00:29:19]} {[%emt 00:02:19]} Qc7 {[%clk 00:28:57]} {[%emt 00:05:08]} 18. Qb1
{[%clk 00:26:27]} {[%emt 00:03:22]} Qd8 {[%clk 00:27:29]} {[%emt 00:01:58]} 19.
Ne5 {[%clk 00:24:51]} {[%emt 00:02:04]} Qe7 {[%clk 00:26:53]} {[%emt 00:01:08]}
20. Ne4 {[%clk 00:24:12]} {[%emt 00:01:05]} Nxe4 {[%clk 00:24:18]} {[%emt
00:03:09]} 21. Bxe4 {[%clk 00:22:17]} {[%emt 00:02:21]} Rfd8 {[%clk 00:22:59]}
{[%emt 00:01:53]} 22. Bxh7+ {[%clk 00:19:06]} {[%emt 00:03:41]} Kh8 {[%clk
00:22:45]} {[%emt 00:00:44]} 23. Be4 {[%clk 00:17:09]} {[%emt 00:02:17]} Be8
{[%clk 00:21:13]} {[%emt 00:02:12]} 24. e3 {[%clk 00:10:43]} {[%emt 00:06:55]}
Qg5 {[%emt 00:05:57]} 25. Nf3 {[%clk 00:08:16]} Qh5 {[%clk 00:17:30]} {[%emt
00:01:43]} 26. Kg2 {[%clk 00:07:51]} {[%emt 00:00:56]} f5 {[%clk 00:15:50]}
{[%emt 00:02:10]} 27. Rxd8 {[%clk 00:07:38]} {[%emt 00:00:43]} Rxd8 {[%clk
00:15:23]} {[%emt 00:00:56]} 28. Bc6 {[%clk 00:07:55]} {[%emt 00:00:12]} Rd6
{[%clk 00:13:06]} {[%emt 00:02:49]} 29. Bxe8 {[%clk 00:07:47]} {[%emt
00:00:39]} Qxe8 {[%clk 00:13:28]} {[%emt 00:00:07]} 30. Qc2 {[%clk 00:06:13]}
{[%emt 00:02:02]} Qa8 {[%clk 00:10:46]} {[%emt 00:03:14]} 31. Qc8+ {[%clk
00:04:18]} {[%emt 00:02:26]} Qxc8 {[%clk 00:11:03]} {[%emt 00:00:13]} 32. Rxc8+
{[%clk 00:04:43]} {[%emt 00:00:05]} Kh7 {[%clk 00:10:11]} {[%emt 00:01:20]} 33.
Kf1 {[%clk 00:04:13]} {[%emt 00:00:58]} Kh6 {[%clk 00:08:19]} {[%emt 00:02:25]}
34. Ke2 {[%clk 00:04:05]} {[%emt 00:00:37]} Kg6 {[%clk 00:06:33]} {[%emt
00:02:17]} 35. h4 {[%clk 00:03:29]} {[%emt 00:01:06]} Bd8 {[%clk 00:05:35]}
{[%emt 00:01:28]} 36. Nd4 {[%clk 00:03:02]} {[%emt 00:00:57]} a6 {[%clk
00:05:25]} {[%emt 00:00:40]} 37. Nxe6 {[%clk 00:03:07]} {[%emt 00:00:25]} Bf6
{[%clk 00:05:06]} {[%emt 00:00:49]} 38. Nf4+ {[%clk 00:03:02]} {[%emt
00:00:35]} Kh7 {[%clk 00:04:42]} {[%emt 00:00:54]} 39. Nd3 {[%clk 00:02:19]}
{[%emt 00:01:13]} Rb6 {[%clk 00:04:12]} {[%emt 00:01:00]} 40. b3 {[%clk
00:01:35]} {[%emt 00:01:15]} Kh6 {[%clk 00:03:48]} {[%emt 00:00:53]} 41. Nf4
{[%clk 00:01:20]} {[%emt 00:00:42]} Kh7 {[%clk 00:03:21]} {[%emt 00:00:58]} 42.
Rc5 {[%clk 00:01:17]} {[%emt 00:00:33]} g6 {[%clk 00:02:55]} {[%emt 00:00:58]}
43. Nd5 {[%clk 00:01:11]} {[%emt 00:00:36]} Rd6 {[%clk 00:02:43]} {[%emt
00:00:42]} 44. Nxf6+ {[%clk 00:01:29]} {[%emt 00:00:12]} Rxf6 {[%clk 00:03:01]}
{[%emt 00:00:10]} 45. a4 {[%clk 00:01:51]} {[%emt 00:00:10]} bxa4 {[%clk
00:03:01]} {[%emt 00:00:30]} 46. bxa4 {[%clk 00:02:19]} {[%emt 00:00:02]} Kh6
{[%clk 00:03:03]} {[%emt 00:00:28]} 47. Rc7 {[%clk 00:02:03]} {[%emt 00:00:45]}
Rb6 {[%clk 00:02:53]} {[%emt 00:00:41]} 48. Ra7 {[%clk 00:02:20]} {[%emt
00:00:13]} Kh5 {[%clk 00:02:40]} {[%emt 00:00:43]} 49. Rh7+ {[%clk 00:02:24]}
{[%emt 00:00:25]} Kg4 {[%clk 00:02:43]} {[%emt 00:00:26]} 50. Kf1 {[%clk
00:02:22]} {[%emt 00:00:34]} Kf3 {[%clk 00:02:52]} {[%emt 00:00:21]} 51. Ke1
{[%clk 00:02:26]} {[%emt 00:00:25]} Rb1+ {[%clk 00:02:57]} {[%emt 00:00:24]} 52.
Kd2 {[%clk 00:02:51]} {[%emt 00:00:07]} Kxf2 {[%clk 00:02:57]} {[%emt
00:00:29]} 53. h5 {[%clk 00:02:43]} {[%emt 00:00:38]} gxh5 {[%clk 00:02:16]}
{[%emt 00:01:11]} 54. Rxh5 {[%clk 00:03:03]} {[%emt 00:00:10]} Kxg3 {[%clk
00:02:43]} {[%emt 00:00:03]} 55. Rxf5 {[%clk 00:03:24]} {[%emt 00:00:09]} Rb4
{[%clk 00:02:24]} {[%emt 00:00:49]} 56. Ra5 {[%clk 00:03:27]} {[%emt 00:00:27]}
Rb6 {[%clk 00:02:37]} {[%emt 00:00:18]} 57. Kd3 {[%clk 00:03:29]} {[%emt
00:00:22]} Re6 {[%clk 00:02:42]} {[%emt 00:00:29]} 58. e4 {[%clk 00:03:18]}
{[%emt 00:00:42]} Kf3 {[%clk 00:01:53]} {[%emt 00:01:19]} 59. Rf5 {[%clk
00:03:18]} {[%emt 00:00:30]} Kg4 {[%clk 00:02:11]} {[%emt 00:00:12]} 60. Kd4
{[%clk 00:03:27]} {[%emt 00:00:20]} Rd6+ {[%clk 00:01:50]} {[%emt 00:00:52]} 61.
Rd5 {[%clk 00:03:46]} {[%emt 00:00:11]} Re6 {[%clk 00:01:53]} {[%emt 00:00:26]}
62. e5 {[%clk 00:03:38]} {[%emt 00:00:39]} Kf4 {[%clk 00:02:02]} {[%emt
00:00:20]} 63. Ra5 {[%clk 00:03:35]} {[%emt 00:00:35]} Kf5 {[%clk 00:01:48]}
{[%emt 00:00:43]} 64. Rc5 {[%clk 00:03:31]} {[%emt 00:00:33]} Kf4 {[%clk
00:02:02]} {[%emt 00:00:18]} 65. Rc1 {[%clk 00:03:41]} {[%emt 00:00:16]} Kg5
{[%clk 00:01:30]} {[%emt 00:01:05]} 66. Kd5 {[%clk 00:03:51]} {[%emt 00:00:20]}
Re8 {[%clk 00:01:22]} {[%emt 00:00:39]} 67. Rc6 {[%clk 00:03:09]} {[%emt
00:01:10]} Kf5 {[%clk 00:01:19]} {[%emt 00:00:34]} 68. Rf6 {[%clk 00:03:28]}
{[%emt 00:00:10]} Kg5 {[%clk 00:01:29]} {[%emt 00:00:20]} 69. Rxa6 {[%clk
00:03:45]} {[%emt 00:00:13]} Rd8+ {[%clk 00:01:28]} {[%emt 00:00:32]} 70. Ke6
{[%clk 00:03:20]} {[%emt 00:00:55]} Rh8 {[%clk 00:01:42]} {[%emt 00:00:16]} 71.
Kd6 {[%clk 00:03:20]} {[%emt 00:00:27]} Re8 {[%clk 00:01:18]} {[%emt 00:00:57]}
72. e6 {[%clk 00:03:28]} {[%emt 00:00:23]} Kf6 {[%clk 00:01:33]} {[%emt
00:00:15]} 73. Kd5 {[%clk 00:02:44]} {[%emt 00:01:11]} Re7 {[%clk 00:01:21]}
{[%emt 00:00:45]} 74. a5 {[%clk 00:02:34]} {[%emt 00:00:41]} Rb7 {[%clk
00:01:23]} {[%emt 00:00:27]} 75. Rb6 {[%clk 00:02:27]} {[%emt 00:00:35]} Rh7
{[%clk 00:01:20]} {[%emt 00:00:34]} 76. e7+ {[%clk 00:02:10]} {[%emt 00:00:47]}
Kf7 {[%clk 00:00:59]} {[%emt 00:00:52]} 77. e8=Q+ {[%clk 00:02:28]} {[%emt
00:00:12]} Kxe8 {[%clk 00:01:14]} {[%emt 00:00:15]} 78. Rb8+ {[%clk 00:02:57]}
{[%emt 00:00:02]} Kf7 {[%clk 00:01:19]} {[%emt 00:00:25]} 79. Rb7+ {[%clk
00:03:23]} {[%emt 00:00:03]} Kg6 {[%clk 00:01:31]} {[%emt 00:00:18]} 80. Rxh7
{[%clk 00:03:50]} {[%emt 00:00:03]} Kxh7 {[%clk 00:01:46]} {[%emt 00:00:16]} 81.
a6 {[%clk 00:04:18]} {[%emt 00:00:02]} Kg7 {[%clk 00:02:01]} {[%emt 00:00:14]}
82. a7 {[%clk 00:04:40]} {[%emt 00:00:09]} Kf7 {[%clk 00:02:24]} {[%emt
00:00:06]} 83. a8=Q {[%clk 00:05:02]} {[%emt 00:00:07]} Ke7 {[%clk 00:02:52]}
{[%emt 00:00:03]} 84. Qc6 {[%clk 00:05:13]} {[%emt 00:00:18]} Kf7 {[%clk
00:03:11]} {[%emt 00:00:12]} 85. Ke5 {[%clk 00:05:26]} {[%emt 00:00:16]} Kg7
{[%clk 00:03:30]} {[%emt 00:00:11]} 86. Qf6+ {[%clk 00:05:39]} {[%emt
00:00:17]} Kg8 {[%clk 00:03:50]} {[%emt 00:00:10]} 87. Qe7 {[%clk 00:06:01]}
{[%emt 00:00:08]} Kh8 {[%clk 00:04:11]} {[%emt 00:00:09]} 88. Kf6 {[%clk
00:06:28]} {[%emt 00:00:03]} Kg8 {[%clk 00:04:32]} {[%emt 00:00:09]} 89. Qg7#
{[%clk 00:06:49]} {[%emt 00:00:09]} 1-0

[Event "ONJK DE"]
[Site "Enschede, Netherlands"]
[Date "2022.08.10"]
[Round "6.3"]
[White "Declerck, Adriaan"]
[Black "Breider, Jayden"]
[Result "0-1"]
[TimeControl "40min + 30sec/move"]
[WhiteElo "1371"]
[BlackElo "1350"]

1. f4 {[%clk 00:40:56]} {[%emt 00:00:03]} e5 {[%clk 00:40:55]} {[%emt
00:00:05]} 2. fxe5 {[%clk 00:41:10]} {[%emt 00:00:16]} d6 {[%clk 00:41:18]}
{[%emt 00:00:07]} 3. Nf3 {[%clk 00:40:17]} {[%emt 00:01:23]} dxe5 {[%clk
00:40:42]} {[%emt 00:01:06]} 4. Nxe5 {[%clk 00:38:44]} {[%emt 00:02:03]} Qh4+
{[%clk 00:40:41]} {[%emt 00:00:30]} 5. g3 {[%clk 00:39:03]} {[%emt 00:00:12]}
Qe4 {[%clk 00:41:01]} {[%emt 00:00:10]} 6. Nf3 {[%clk 00:39:26]} {[%emt
00:00:06]} Bd6 {[%clk 00:39:09]} {[%emt 00:02:24]} 7. Nc3 {[%clk 00:38:55]}
{[%emt 00:01:00]} Qg6 {[%clk 00:39:19]} {[%emt 00:00:20]} 8. Bg2 {[%clk
00:37:40]} {[%emt 00:01:46]} Ne7 {[%clk 00:38:27]} {[%emt 00:01:21]} 9. e4
{[%clk 00:36:31]} {[%emt 00:01:39]} Nbc6 {[%clk 00:37:18]} {[%emt 00:01:39]} 10.
O-O {[%clk 00:36:19]} {[%emt 00:00:42]} Bg4 {[%clk 00:36:31]} {[%emt 00:01:18]}
11. d4 {[%clk 00:34:41]} {[%emt 00:02:07]} O-O {[%clk 00:34:45]} {[%emt
00:02:16]} 12. Qd3 {[%clk 00:31:27]} {[%emt 00:03:44]} Bb4 {[%clk 00:33:43]}
{[%emt 00:01:32]} 13. a3 {[%clk 00:28:30]} {[%emt 00:03:27]} Bxc3 {[%clk
00:33:36]} {[%emt 00:00:37]} 14. bxc3 {[%clk 00:28:06]} {[%emt 00:00:53]} f5
{[%clk 00:31:16]} {[%emt 00:02:50]} 15. Nh4 {[%clk 00:23:31]} {[%emt 00:05:05]}
Qh5 {[%clk 00:24:18]} {[%emt 00:07:29]} 16. h3 {[%clk 00:20:23]} {[%emt
00:03:38]} Be2 {[%clk 00:23:23]} {[%emt 00:01:24]} 17. Bf3 {[%clk 00:19:49]}
{[%emt 00:01:05]} Bxd3 {[%clk 00:23:29]} {[%emt 00:00:24]} 18. Bxh5 {[%clk
00:20:12]} {[%emt 00:00:06]} Bxf1 {[%clk 00:23:53]} {[%emt 00:00:07]} 19. Kxf1
{[%clk 00:20:34]} {[%emt 00:00:08]} fxe4+ {[%clk 00:24:13]} {[%emt 00:00:10]}
20. Kg2 {[%clk 00:20:49]} {[%emt 00:00:14]} Rad8 {[%clk 00:20:04]} {[%emt
00:04:39]} 21. Bb2 {[%clk 00:19:40]} {[%emt 00:01:40]} g5 {[%clk 00:19:30]}
{[%emt 00:01:04]} 0-1

[Event "ONJK DE"]
[Site "Enschede, Netherlands"]
[Date "2022.08.10"]
[Round "6.4"]
[White "Verwer, Oscar"]
[Black "Meert, Maarin"]
[Result "1-0"]
[TimeControl "40min + 30sec/move"]
[WhiteElo "1361"]
[BlackElo "1299"]

1. e4 {[%clk 00:40:58]} {[%emt 00:00:02]} e6 {[%clk 00:40:57]} {[%emt
00:00:04]} 2. Nf3 {[%clk 00:41:23]} {[%emt 00:00:04]} d5 {[%clk 00:41:22]}
{[%emt 00:00:05]} 3. e5 {[%clk 00:41:49]} {[%emt 00:00:04]} c5 {[%clk
00:41:37]} {[%emt 00:00:15]} 4. b4 {[%clk 00:42:13]} {[%emt 00:00:05]} c4
{[%clk 00:40:37]} {[%emt 00:01:31]} 5. c3 {[%clk 00:42:05]} {[%emt 00:00:37]}
a6 {[%clk 00:40:09]} {[%emt 00:00:59]} 6. d3 {[%clk 00:41:52]} {[%emt
00:00:43]} b5 {[%clk 00:39:45]} {[%emt 00:00:55]} 7. a3 {[%clk 00:41:20]}
{[%emt 00:01:02]} Nc6 {[%clk 00:39:38]} {[%emt 00:00:36]} 8. a4 {[%clk
00:38:59]} {[%emt 00:02:51]} Bd7 {[%clk 00:38:21]} {[%emt 00:01:47]} 9. Be2
{[%clk 00:36:55]} {[%emt 00:02:34]} Be7 {[%clk 00:36:17]} {[%emt 00:02:34]} 10.
O-O {[%clk 00:36:52]} {[%emt 00:00:33]} f6 {[%clk 00:36:23]} {[%emt 00:00:24]}
11. d4 {[%clk 00:36:47]} {[%emt 00:00:35]} fxe5 {[%clk 00:34:23]} {[%emt
00:02:30]} 12. dxe5 {[%clk 00:35:36]} {[%emt 00:01:40]} Rb8 {[%clk 00:32:40]}
{[%emt 00:02:13]} 13. a5 {[%clk 00:33:49]} {[%emt 00:02:17]} Qc7 {[%clk
00:32:24]} {[%emt 00:00:47]} 14. Bf4 {[%clk 00:33:40]} {[%emt 00:00:38]} Bd8
{[%clk 00:31:49]} {[%emt 00:01:05]} 15. Bg3 {[%clk 00:29:54]} {[%emt 00:04:17]}
Nge7 {[%clk 00:31:21]} {[%emt 00:00:58]} 16. Na3 {[%clk 00:26:17]} {[%emt
00:04:06]} Nf5 {[%clk 00:30:46]} {[%emt 00:01:06]} 17. Bf4 {[%clk 00:25:11]}
{[%emt 00:01:35]} O-O {[%clk 00:30:33]} {[%emt 00:00:44]} 18. Qd2 {[%clk
00:23:52]} {[%emt 00:01:49]} Be8 {[%clk 00:27:18]} {[%emt 00:03:45]} 19. Nc2
{[%clk 00:21:53]} {[%emt 00:02:29]} Bg6 {[%clk 00:26:44]} {[%emt 00:01:03]} 20.
Ncd4 {[%clk 00:20:45]} {[%emt 00:01:39]} Ncxd4 {[%clk 00:26:30]} {[%emt
00:00:44]} 21. Nxd4 {[%clk 00:20:42]} {[%emt 00:00:33]} Nxd4 {[%clk 00:26:45]}
{[%emt 00:00:15]} 22. Qxd4 {[%clk 00:20:59]} {[%emt 00:00:12]} Qf7 {[%clk
00:26:17]} {[%emt 00:00:59]} 23. Be3 {[%clk 00:18:53]} {[%emt 00:02:36]} Bc7
{[%clk 00:24:56]} {[%emt 00:01:51]} 24. f4 {[%clk 00:18:37]} {[%emt 00:00:45]}
Be4 {[%clk 00:24:29]} {[%emt 00:00:58]} 25. Rf2 {[%clk 00:17:23]} {[%emt
00:01:44]} Rb7 {[%clk 00:23:12]} {[%emt 00:01:47]} 26. Bf3 {[%clk 00:16:29]}
{[%emt 00:01:23]} Bxf3 {[%clk 00:22:52]} {[%emt 00:00:51]} 27. Rxf3 {[%clk
00:16:43]} {[%emt 00:00:16]} Qg6 {[%clk 00:22:42]} {[%emt 00:00:40]} 28. Raf1
{[%clk 00:15:07]} {[%emt 00:02:06]} Bd8 {[%clk 00:22:19]} {[%emt 00:00:53]} 29.
f5 {[%clk 00:13:56]} {[%emt 00:01:41]} Rxf5 {[%clk 00:20:10]} {[%emt 00:02:38]}
30. Rxf5 {[%clk 00:13:58]} {[%emt 00:00:28]} exf5 {[%clk 00:20:28]} {[%emt
00:00:12]} 31. Qxd5+ {[%clk 00:14:21]} {[%emt 00:00:07]} Rf7 {[%clk 00:20:19]}
{[%emt 00:00:40]} 32. Qxd8+ {[%clk 00:14:29]} {[%emt 00:00:22]} Rf8 {[%clk
00:20:40]} {[%emt 00:00:09]} 33. Qd5+ {[%clk 00:14:50]} {[%emt 00:00:08]} Rf7
{[%clk 00:20:56]} {[%emt 00:00:14]} 34. e6 {[%clk 00:14:44]} {[%emt 00:00:36]}
Re7 {[%clk 00:20:47]} {[%emt 00:00:39]} 35. Qd8+ {[%clk 00:12:17]} {[%emt
00:02:58]} Re8 {[%clk 00:20:38]} {[%emt 00:00:39]} 36. e7 {[%clk 00:11:22]}
{[%emt 00:01:25]} Qf7 {[%clk 00:20:51]} {[%emt 00:00:17]} 37. Rxf5 {[%clk
00:11:26]} {[%emt 00:00:26]} Qxe7 {[%clk 00:20:49]} {[%emt 00:00:33]} 38. Qxe7
{[%clk 00:11:30]} {[%emt 00:00:26]} Rxe7 {[%clk 00:21:11]} {[%emt 00:00:08]} 39.
Bc5 {[%clk 00:11:45]} {[%emt 00:00:15]} Rf7 {[%clk 00:21:25]} {[%emt 00:00:15]}
40. Rxf7 {[%clk 00:12:07]} {[%emt 00:00:08]} Kxf7 {[%clk 00:21:49]} {[%emt
00:00:06]} 41. Kf2 {[%clk 00:12:33]} {[%emt 00:00:04]} Ke6 {[%clk 00:22:07]}
{[%emt 00:00:12]} 42. Kf3 {[%clk 00:12:46]} {[%emt 00:00:18]} Kf5 {[%clk
00:22:31]} {[%emt 00:00:06]} 43. Bd4 {[%clk 00:12:59]} {[%emt 00:00:17]} g6
{[%clk 00:22:26]} {[%emt 00:00:35]} 44. g3 {[%clk 00:13:07]} {[%emt 00:00:22]}
h5 {[%clk 00:22:44]} {[%emt 00:00:12]} 45. h3 {[%clk 00:13:22]} {[%emt
00:00:16]} g5 {[%clk 00:22:44]} {[%emt 00:00:29]} 46. h4 {[%clk 00:13:30]}
{[%emt 00:00:22]} g4+ {[%clk 00:23:07]} {[%emt 00:00:07]} 47. Ke3 {[%emt
00:00:37]} 1-0

[Event "ONJK DE"]
[Site "Enschede, Netherlands"]
[Date "2022.08.10"]
[Round "6.5"]
[White "Decraene, Lotus"]
[Black "Gang, Kevin Wan Ze"]
[Result "1/2-1/2"]
[TimeControl "40min + 30sec/move"]
[WhiteElo "1332"]
[BlackElo "1105"]

1. e4 {[%clk 00:40:58]} {[%emt 00:00:01]} e5 {[%clk 00:40:54]} {[%emt
00:00:07]} 2. Nf3 {[%clk 00:41:24]} {[%emt 00:00:04]} Nc6 {[%clk 00:41:18]}
{[%emt 00:00:06]} 3. Bc4 {[%clk 00:41:48]} {[%emt 00:00:06]} Nf6 {[%clk
00:41:38]} {[%emt 00:00:10]} 4. Nc3 {[%clk 00:42:03]} {[%emt 00:00:15]} Nxe4
{[%clk 00:42:03]} {[%emt 00:00:05]} 5. Nxe4 {[%clk 00:42:25]} {[%emt 00:00:07]}
d5 {[%clk 00:42:29]} {[%emt 00:00:04]} 6. Bd3 {[%clk 00:42:36]} {[%emt
00:00:20]} dxe4 {[%clk 00:42:52]} {[%emt 00:00:06]} 7. Bxe4 {[%clk 00:42:51]}
{[%emt 00:00:14]} f5 {[%clk 00:42:52]} {[%emt 00:00:31]} 8. Bxc6+ {[%clk
00:42:36]} {[%emt 00:00:45]} bxc6 {[%clk 00:43:15]} {[%emt 00:00:07]} 9. d3
{[%clk 00:42:34]} {[%emt 00:00:33]} e4 {[%clk 00:43:29]} {[%emt 00:00:16]} 10.
Bg5 {[%clk 00:41:45]} {[%emt 00:01:20]} Be7 {[%clk 00:42:56]} {[%emt 00:01:03]}
11. Bxe7 {[%clk 00:42:03]} {[%emt 00:00:11]} Qxe7 {[%clk 00:43:19]} {[%emt
00:00:06]} 12. dxe4 {[%clk 00:42:20]} {[%emt 00:00:14]} Qxe4+ {[%clk 00:43:31]}
{[%emt 00:00:17]} 13. Qe2 {[%clk 00:42:47]} {[%emt 00:00:05]} O-O {[%clk
00:43:32]} {[%emt 00:00:29]} 14. Qxe4 {[%clk 00:42:34]} {[%emt 00:00:41]} fxe4
{[%clk 00:43:49]} {[%emt 00:00:14]} 15. Nd4 {[%clk 00:42:42]} {[%emt 00:00:23]}
c5 {[%clk 00:42:59]} {[%emt 00:01:20]} 16. Nb3 {[%clk 00:43:02]} {[%emt
00:00:09]} Rb8 {[%clk 00:43:11]} {[%emt 00:00:18]} 17. Rb1 {[%clk 00:41:56]}
{[%emt 00:01:37]} c4 {[%clk 00:42:37]} {[%emt 00:01:03]} 18. Nd4 {[%clk
00:41:24]} {[%emt 00:00:57]} c3 {[%clk 00:42:34]} {[%emt 00:00:39]} 19. O-O
{[%clk 00:40:38]} {[%emt 00:01:15]} cxb2 {[%clk 00:42:39]} {[%emt 00:00:25]} 20.
Nb3 {[%clk 00:40:59]} {[%emt 00:00:10]} Be6 {[%clk 00:42:38]} {[%emt 00:00:31]}
21. Rxb2 {[%clk 00:41:11]} {[%emt 00:00:18]} Bxb3 {[%clk 00:42:58]} {[%emt
00:00:09]} 22. cxb3 {[%clk 00:41:33]} {[%emt 00:00:09]} c5 {[%clk 00:42:56]}
{[%emt 00:00:31]} 23. Rc2 {[%clk 00:41:57]} {[%emt 00:00:05]} Rbc8 {[%clk
00:43:03]} {[%emt 00:00:22]} 24. Rfc1 {[%clk 00:42:18]} {[%emt 00:00:10]} Rfd8
{[%clk 00:43:13]} {[%emt 00:00:21]} 25. g3 {[%clk 00:42:26]} {[%emt 00:00:22]}
Rd5 {[%clk 00:43:31]} {[%emt 00:00:11]} 26. Rc4 {[%clk 00:42:32]} {[%emt
00:00:24]} Re5 {[%clk 00:43:44]} {[%emt 00:00:17]} 27. Kf1 {[%clk 00:42:43]}
{[%emt 00:00:20]} Kf7 {[%clk 00:43:56]} {[%emt 00:00:16]} 28. Ke2 {[%clk
00:43:07]} {[%emt 00:00:07]} Ke6 {[%clk 00:43:55]} {[%emt 00:00:31]} 29. b4
{[%clk 00:43:21]} {[%emt 00:00:17]} Kd6 {[%clk 00:43:05]} {[%emt 00:01:20]} 30.
Ke3 {[%clk 00:43:46]} {[%emt 00:00:05]} Rc6 {[%clk 00:41:35]} {[%emt 00:02:00]}
31. b5 {[%clk 00:34:16]} {[%emt 00:09:59]} Rb6 {[%clk 00:41:22]} {[%emt
00:00:44]} 32. a4 {[%clk 00:34:41]} {[%emt 00:00:05]} a6 {[%clk 00:41:31]}
{[%emt 00:00:20]} 1/2-1/2